fUSD/lending_fUSD_20240520
["ID","MTS","AMOUNT","RATE_DAILY","PERIOD"]
[327594686,1716246697473,-1534.7,0.00039178,6]
[327594687,1716246697483,-1367.3,0.00039178,6]
[327594688,1716246697492,-500.0,0.00039178,6]
[327594689,1716246697502,-500.0,0.00039178,6]
[327594690,1716246697511,-875.2,0.00039178,6]
[327594691,1716246697520,-299.94,0.00039178,6]
[327594692,1716246697529,-151.0,0.00039178,14]
[327594693,1716246697539,-1445.57588397,0.00039452,6]
[327594694,1716246697549,-21069.99,0.00039452,6]
[327594695,1716246697559,-1520.85,0.00039452,6]
[327594696,1716246697568,-500.0,0.00039452,6]
[327594697,1716246697577,-11585.55,0.00039452,6]
[327594698,1716246697587,-813.72,0.00039452,6]
[327594699,1716246697596,-1659.83,0.00039452,6]
[327594700,1716246697605,-1180.21,0.00039452,6]
[327594701,1716246697615,-500.0,0.00039452,6]
[327594702,1716246697624,-1121.26,0.00039452,6]
[327594703,1716246697633,-500.0,0.00039452,6]
[327594704,1716246697643,-500.0,0.00039452,6]
[327594705,1716246697652,-2205.27,0.00039452,6]
[327594706,1716246697662,-2953.4,0.00039452,6]
[327594707,1716246697672,-686.04,0.00039452,6]
[327594708,1716246697681,-3219.62,0.00039452,6]
[327594709,1716246697690,-8442.33,0.00039452,6]
[327594710,1716246697700,-769.66,0.00039452,6]
[327594711,1716246697709,-564.0,0.00039452,6]
[327594712,1716246697719,-530.63,0.00039452,6]
[327594713,1716246697728,-670.88,0.00039452,6]
[327594714,1716246697737,-1259.58,0.00039452,6]
[327594715,1716246697750,-1932.37,0.00039452,6]
[327594716,1716246697759,-500.0,0.00039452,6]
[327594717,1716246697768,-8812.96,0.00039452,6]
[327594718,1716246697778,-2195.53,0.00039452,6]
[327594719,1716246697787,-1283.64,0.00039452,6]
[327594720,1716246697798,-9543.04,0.00039452,6]
[327594721,1716246697808,-555.84,0.00039452,6]
[327594722,1716246697818,-574.5,0.00039452,6]
[327594723,1716246697827,-2230.85,0.00039452,6]
[327594724,1716246697837,-500.0,0.00039452,6]
[327594725,1716246697846,-653.4,0.00039452,6]
[327594726,1716246697856,-1507.66,0.00039452,6]
[327594727,1716246697865,-500.0,0.00039452,6]
[327594728,1716246697875,-942.31,0.00039452,6]
[327594729,1716246697884,-500.0,0.00039452,6]
[327594730,1716246697893,-3681.57,0.00039452,6]
[327594731,1716246697904,-500.0,0.00039452,6]
[327594732,1716246697913,-949.29091237,0.00039452,6]
[327594733,1716246697927,-42.65908763,0.00039452,6]
[327594734,1716246697937,-500.0,0.00039452,6]
[327594735,1716246697946,-500.0,0.00039452,6]
[327594736,1716246697956,-1081.9,0.00039452,6]
[327594737,1716246697966,-500.0,0.00039452,6]
[327594738,1716246697975,-8066.57,0.00039452,6]
[327594739,1716246697985,-1589.03,0.00039452,6]
[327594740,1716246697995,-524.22,0.00039452,6]
[327594741,1716246698004,-1173.17,0.00039452,6]
[327594742,1716246698014,-1448.33,0.00039452,6]
[327594743,1716246698023,-1202.8,0.00039452,6]
[327594744,1716246698033,-2792.2,0.00039452,6]
[327594745,1716246698043,-500.0,0.00039452,6]
[327594746,1716246698053,-500.0,0.00039452,6]
[327594747,1716246698063,-500.0,0.00039452,6]
[327594748,1716246698073,-500.0,0.00039452,6]
[327594749,1716246698082,-2599.42,0.00039452,6]
[327594750,1716246698091,-1372.08,0.00039452,6]
[327594751,1716246698101,-500.0,0.00039452,6]
[327594752,1716246698110,-1311.61,0.00039452,6]
[327594753,1716246698119,-2197.36,0.00039452,6]
[327594754,1716246698129,-4115.35,0.00039452,6]
[327594755,1716246698139,-500.0,0.00039452,6]
[327594756,1716246698148,-500.0,0.00039452,6]
[327594757,1716246698158,-500.0,0.00039452,6]
[327594758,1716246698167,-500.0,0.00039452,6]
[327594759,1716246698177,-500.0,0.00039452,6]
[327594760,1716246698186,-500.0,0.00039452,6]
[327594761,1716246698196,-500.0,0.00039452,6]
[327594762,1716246698206,-1248.45,0.00039452,6]
[327594763,1716246698215,-818.38,0.00039452,6]
[327594764,1716246698226,-551.38,0.00039452,6]
[327594765,1716246698235,-889.73,0.00039452,6]
[327594766,1716246698245,-1166.82,0.00039452,6]
[327594767,1716246698255,-4782.56,0.00039452,6]
[327594768,1716246698264,-2760.24,0.00039452,6]
[327594769,1716246698275,-3451.78,0.00039452,6]
[327594770,1716246698288,-804.28,0.00039452,6]
[327594771,1716246698299,-7172.29,0.00039452,6]
[327594772,1716246698309,-806.25,0.00039452,6]
[327594773,1716246698318,-500.0,0.00039452,6]
[327594774,1716246698330,-500.0,0.00039452,6]
[327594775,1716246698340,-500.0,0.00039452,6]
[327594776,1716246698351,-2227.02,0.00039452,6]
[327594777,1716246698362,-1648.04,0.00039452,6]
[327594778,1716246698372,-1451.09,0.00039452,6]
[327594779,1716246698382,-500.0,0.00039452,6]
[327594780,1716246698392,-3539.72,0.00039452,6]
[327594781,1716246698402,-500.0,0.00039452,6]
[327594782,1716246698412,-1260.01,0.00039452,6]
[327594783,1716246698423,-3810.44,0.00039452,6]
[327594784,1716246698434,-1127.1,0.00039452,6]
[327594785,1716246698443,-500.0,0.00039452,6]
[327594786,1716246698453,-2724.72,0.00039452,6]
[327594787,1716246698463,-1327.78,0.00039452,6]
[327594788,1716246698476,-500.0,0.00039452,6]
[327594789,1716246698487,-500.0,0.00039452,6]
[327594790,1716246698497,-3095.64,0.00039452,6]
[327594791,1716246698508,-500.0,0.00039452,6]
[327594792,1716246698519,-500.0,0.00039452,6]
[327594793,1716246698529,-1133.27205191,0.00039452,6]
[327594794,1716246698542,-1161.12794809,0.00039452,6]
[327594795,1716246698554,-500.0,0.00039452,6]
[327594796,1716246698563,-3662.22,0.00039452,6]
[327594797,1716246698573,-397.71455312,0.00039452,6]
[327594798,1716246698584,-500.0,0.00039452,6]
[327594799,1716246698593,-2344.33,0.00039452,6]
[327594800,1716246698603,-500.0,0.00039452,6]
[327594801,1716246698613,-2919.45,0.00039452,6]
[327594802,1716246698624,-12060.74,0.00039452,6]
[327594803,1716246698634,-500.0,0.00039452,6]
[327594804,1716246698644,-2053.36,0.00039452,6]
[327594805,1716246698655,-5062.07,0.00039452,6]
[327594806,1716246698667,-668.13,0.00039452,6]
[327594807,1716246698676,-1665.69,0.00039452,6]
[327594808,1716246698686,-818.94,0.00039452,6]
[327594809,1716246698696,-500.0,0.00039452,6]
[327594810,1716246698707,-2979.18,0.00039452,6]
[327594811,1716246698717,-2276.61,0.00039452,6]
[327594812,1716246698728,-832.65,0.00039452,6]
[327594813,1716246698738,-1202.24,0.00039452,6]
[327594814,1716246698748,-500.0,0.00039452,6]
[327594815,1716246698758,-500.0,0.00039452,6]
[327594816,1716246698767,-547.43,0.00039452,6]
[327594817,1716246698778,-4292.85,0.00039452,6]
[327594818,1716246698788,-2981.46,0.00039452,6]
[327594819,1716246698797,-500.0,0.00039452,6]
[327594820,1716246698810,-511.68,0.00039452,6]
[327594821,1716246698821,-3960.48,0.00039452,6]
[327594822,1716246698832,-648.75,0.00039452,6]
[327594823,1716246698842,-1633.91,0.00039452,6]
[327594824,1716246698852,-500.0,0.00039452,6]
[327594825,1716246698863,-1623.31,0.00039452,6]
[327594826,1716246698874,-500.0,0.00039452,6]
[327594827,1716246698883,-500.0,0.00039452,6]
[327594828,1716246698893,-3725.21,0.00039452,6]
[327594829,1716246698903,-2927.56,0.00039452,6]
[327594830,1716246698912,-844.95,0.00039452,6]
[327594831,1716246698922,-3947.76,0.00039452,6]
[327594832,1716246698932,-500.0,0.00039452,6]
[327594833,1716246698942,-1350.66,0.00039452,6]
[327594834,1716246698952,-796.37,0.00039452,6]
[327594835,1716246698961,-3114.22,0.00039452,6]
[327594836,1716246698971,-151.0,0.00039452,14]
[327594837,1716246698980,-1248.3,0.00039452,6]
[327594838,1716246698989,-566.76,0.00039452,6]
[327594839,1716246698999,-269.75572464,0.00039452,6]
[327594840,1716246699009,-568.24,0.00039452,6]
[327594841,1716246699018,-500.0,0.00039452,6]
[327594842,1716246699028,-500.0,0.00039452,6]
[327594843,1716246699038,-500.0,0.00039452,6]
[327594844,1716246699051,-1010.42,0.00039452,6]
[327594845,1716246699061,-528.38,0.00039452,6]
[327594846,1716246699071,-374.46137945,0.00039452,6]
[327594847,1716246699082,-1534.7,0.00039452,6]
[327594848,1716246699092,-1367.3,0.00039452,6]
[327594849,1716246699102,-500.0,0.00039452,6]
[327594850,1716246699112,-500.0,0.00039452,6]
[327594851,1716246699122,-500.0,0.00039452,6]
[327594852,1716246699132,-875.2,0.00039452,6]
[327594853,1716246699142,-1565.2946698,0.00039481,2]
[327594854,1716246699152,-150.0,0.00039486,2]
[327594855,1716246699162,-4945.59745371,0.00039551,13]
[327594856,1716246699172,-788.0,0.00039566,20]
[327594857,1716246699182,-477.0,0.00039566,20]
[327594858,1716246699192,-712.26349083,0.00039575,2]
[327594859,1716246699202,-150.0,0.00039582,2]
[327594860,1716246699212,-7172.091848,0.000396,2]
[327594861,1716246699221,-151.0699967,0.00039612,2]
[327594862,1716246699231,-150.0,0.00039632,2]
[327594863,1716246699241,-301.09694564,0.00039652,2]
[327594864,1716246699251,-150.0,0.00039653,2]
[327594865,1716246699261,-150.0,0.0003966,7]
[327594866,1716246699271,-4945.59745371,0.00039675,13]
[327594867,1716246699282,-800.0,0.00039699,2]
[327594868,1716246699296,-150.0,0.00039699,2]
[327594869,1716246699308,-150.0,0.000397,14]
[327594870,1716246699318,-160.0,0.000397,14]
[327594871,1716246699328,-160.0,0.000397,14]
[327594872,1716246699339,-150.0,0.000397,10]
[327594873,1716246699349,-558.4935235,0.00039721,2]
[327594874,1716246699359,-812.9201891,0.00039721,2]
[327594875,1716246699370,-975.3228715,0.00039721,2]
[327594876,1716246699381,-693.6850303,0.00039721,2]
[327594877,1716246699391,-20195.9292325,0.00039721,2]
[327594878,1716246699401,-1530.865714,0.00039721,2]
[327594879,1716246699412,-1941.4981076,0.00039721,2]
[327594880,1716246699422,-1359.6543975,0.00039721,2]
[327594881,1716246699432,-251.779551,0.00039721,14]
[327594882,1716246699442,-150.01,0.00039725,2]
[327594883,1716246699452,-1774.97607581,0.00039725,2]
[327594884,1716246699463,-1094.03,0.00039725,4]
[327594885,1716246699742,-150.0,0.00039725,2]
[327594886,1716246699753,-500.0,0.00039726,6]
[327594887,1716246699762,-500.0,0.00039726,6]
[327594888,1716246699772,-500.0,0.00039726,6]
[327594889,1716246699782,-500.0,0.00039726,6]
[327594890,1716246699791,-500.0,0.00039726,6]
[327594891,1716246699800,-500.0,0.00039726,6]
[327594892,1716246699810,-500.0,0.00039726,6]
[327594893,1716246699819,-500.0,0.00039726,6]
[327594894,1716246699829,-500.0,0.00039726,6]
[327594895,1716246699839,-605.12,0.00039726,6]
[327594896,1716246699848,-500.0,0.00039726,6]
[327594897,1716246699858,-500.0,0.00039726,6]
[327594898,1716246699868,-500.0,0.00039726,6]
[327594899,1716246699878,-500.0,0.00039726,6]
[327594900,1716246699888,-993.47,0.00039726,6]
[327594901,1716246699897,-500.0,0.00039726,6]
[327594902,1716246699907,-500.0,0.00039726,6]
[327594903,1716246699916,-500.0,0.00039726,6]
[327594904,1716246699925,-500.0,0.00039726,6]
[327594905,1716246699935,-500.0,0.00039726,6]
[327594906,1716246699945,-500.0,0.00039726,6]
[327594907,1716246699955,-644.94,0.00039726,6]
[327594908,1716246699965,-500.0,0.00039726,6]
[327594909,1716246699975,-500.0,0.00039726,6]
[327594910,1716246699985,-500.0,0.00039726,6]
[327594911,1716246699995,-500.0,0.00039726,6]
[327594912,1716246700005,-500.0,0.00039726,6]
[327594913,1716246700015,-500.0,0.00039726,6]
[327594914,1716246700024,-500.0,0.00039726,6]
[327594915,1716246700033,-500.0,0.00039726,6]
[327594916,1716246700043,-500.0,0.00039726,6]
[327594917,1716246700054,-500.0,0.00039726,6]
[327594918,1716246700063,-500.0,0.00039726,6]
[327594919,1716246700072,-706.15,0.00039726,6]
[327594920,1716246700082,-963.13,0.00039726,6]
[327594921,1716246700092,-500.0,0.00039726,6]
[327594922,1716246700102,-675.0,0.00039726,6]
[327594923,1716246700112,-500.0,0.00039726,6]
[327594924,1716246700122,-617.75,0.00039726,6]
[327594925,1716246700131,-1361.19,0.00039726,6]
[327594926,1716246700141,-500.0,0.00039726,6]
[327594927,1716246700151,-504.27497272,0.00039726,6]
[327594928,1716246700160,-582.73,0.00039726,6]
[327594929,1716246700170,-500.0,0.00039726,6]
[327594930,1716246700179,-500.0,0.00039726,6]
[327594931,1716246700189,-500.0,0.00039726,6]
[327594932,1716246700199,-500.0,0.00039726,6]
[327594933,1716246700208,-500.0,0.00039726,6]
[327594934,1716246700217,-500.0,0.00039726,6]
[327594935,1716246700226,-500.0,0.00039726,6]
[327594936,1716246700236,-500.0,0.00039726,6]
[327594937,1716246700246,-500.0,0.00039726,6]
[327594938,1716246700256,-500.0,0.00039726,6]
[327594939,1716246700266,-500.0,0.00039726,6]
[327594940,1716246700277,-500.0,0.00039726,6]
[327594941,1716246700289,-500.0,0.00039726,6]
[327594942,1716246700299,-500.0,0.00039726,6]
[327594943,1716246700308,-652.99,0.00039726,6]
[327594944,1716246700319,-500.0,0.00039726,6]
[327594945,1716246700330,-517.2747614,0.00039726,6]
[327594946,1716246700339,-513.98065455,0.00039726,6]
[327594947,1716246700348,-596.88,0.00039726,6]
[327594948,1716246700359,-661.32,0.00039726,6]
[327594949,1716246700369,-1144.55,0.00039726,6]
[327594950,1716246700379,-500.0,0.00039726,6]
[327594951,1716246700388,-951.14,0.00039726,6]
[327594952,1716246700397,-500.0,0.00039726,6]
[327594953,1716246700407,-500.0,0.00039726,6]
[327594954,1716246700417,-500.0,0.00039726,6]
[327594955,1716246700427,-1432.71,0.00039726,6]
[327594956,1716246700436,-514.35236603,0.00039726,6]
[327594957,1716246700447,-500.0,0.00039726,6]
[327594958,1716246700457,-500.0,0.00039726,6]
[327594959,1716246700467,-933.1,0.00039726,6]
[327594960,1716246700476,-1010.0,0.00039726,6]
[327594961,1716246700486,-500.0,0.00039726,6]
[327594962,1716246700495,-500.0,0.00039726,6]
[327594963,1716246700504,-578.46,0.00039726,6]
[327594964,1716246700514,-620.21,0.00039726,6]
[327594965,1716246700523,-500.0,0.00039726,6]
[327594966,1716246700532,-500.0,0.00039726,6]
[327594967,1716246700541,-650.53,0.00039726,6]
[327594968,1716246700551,-500.0,0.00039726,6]
[327594969,1716246700561,-693.87,0.00039726,6]
[327594970,1716246700570,-540.85131819,0.00039726,6]
[327594971,1716246700580,-542.68,0.00039726,6]
[327594972,1716246700589,-637.78,0.00039726,6]
[327594973,1716246700599,-544.83,0.00039726,6]
[327594974,1716246700608,-991.09,0.00039726,6]
[327594975,1716246700617,-500.0,0.00039726,6]
[327594976,1716246700627,-1494.37,0.00039726,6]
[327594977,1716246700636,-500.0,0.00039726,6]
[327594978,1716246700645,-500.0,0.00039726,6]
[327594979,1716246700654,-882.87,0.00039726,6]
[327594980,1716246700664,-500.0,0.00039726,6]
[327594981,1716246700673,-1368.93,0.00039726,6]
[327594982,1716246700683,-500.0,0.00039726,6]
[327594983,1716246700692,-2000.0,0.00039726,30]
[327594984,1716246700701,-500.0,0.00039726,6]
[327594985,1716246700711,-500.0,0.00039726,6]
[327594986,1716246700720,-500.0,0.00039726,6]
[327594987,1716246700729,-657.4,0.00039726,6]
[327594988,1716246700739,-500.0,0.00039726,6]
[327594989,1716246700748,-500.0,0.00039726,6]
[327594990,1716246700758,-500.0,0.00039726,6]
[327594991,1716246700767,-500.0,0.00039726,6]
[327594992,1716246700776,-1079.66,0.00039726,6]
[327594993,1716246700785,-818.11,0.00039726,6]
[327594994,1716246700795,-500.0,0.00039726,6]
[327594995,1716246700806,-519.94,0.00039726,6]
[327594996,1716246700815,-529.42,0.00039726,6]
[327594997,1716246700825,-500.0,0.00039726,6]
[327594998,1716246700835,-500.0,0.00039726,6]
[327594999,1716246700845,-500.0,0.00039726,6]
[327595000,1716246700854,-1104.38,0.00039726,6]
[327595001,1716246700864,-1385.47,0.00039726,6]
[327595002,1716246700874,-517.28,0.00039726,6]
[327595003,1716246700883,-889.2,0.00039726,6]
[327595004,1716246700892,-757.19,0.00039726,6]
[327595005,1716246700902,-500.0,0.00039726,6]
[327595006,1716246700911,-500.0,0.00039726,6]
[327595007,1716246700920,-761.68,0.00039726,6]
[327595008,1716246700929,-834.71,0.00039726,6]
[327595009,1716246700940,-1297.95,0.00039726,6]
[327595010,1716246700950,-500.0,0.00039726,6]
[327595011,1716246700959,-500.0,0.00039726,6]
[327595012,1716246700968,-500.0,0.00039726,6]
[327595013,1716246700977,-635.84,0.00039726,6]
[327595014,1716246700987,-636.12,0.00039726,6]
[327595015,1716246700997,-500.0,0.00039726,6]
[327595016,1716246701008,-500.0,0.00039726,6]
[327595017,1716246701018,-500.0,0.00039726,6]
[327595018,1716246701028,-500.0,0.00039726,6]
[327595019,1716246701038,-716.2,0.00039726,6]
[327595020,1716246701047,-627.92,0.00039726,6]
[327595021,1716246701057,-500.0,0.00039726,6]
[327595022,1716246701066,-709.67,0.00039726,6]
[327595023,1716246701075,-500.0,0.00039726,6]
[327595024,1716246701085,-1416.62,0.00039726,6]
[327595025,1716246701095,-1285.82,0.00039726,6]
[327595026,1716246701104,-1184.9,0.00039726,6]
[327595027,1716246701113,-602.76,0.00039726,6]
[327595028,1716246701122,-939.67,0.00039726,6]
[327595029,1716246701131,-500.0,0.00039726,6]
[327595030,1716246701141,-1140.97,0.00039726,6]
[327595031,1716246701150,-500.0,0.00039726,6]
[327595032,1716246701159,-500.0,0.00039726,6]
[327595033,1716246701169,-879.29,0.00039726,6]
[327595034,1716246701178,-1264.74,0.00039726,6]
[327595035,1716246701188,-1105.1,0.00039726,6]
[327595036,1716246701197,-854.23,0.00039726,6]
[327595037,1716246701206,-1092.97,0.00039726,6]
[327595038,1716246701215,-1545.89,0.00039726,6]
[327595039,1716246701225,-584.91,0.00039726,6]
[327595040,1716246701234,-500.0,0.00039726,6]
[327595041,1716246701243,-500.0,0.00039726,6]
[327595042,1716246701252,-500.0,0.00039726,6]
[327595043,1716246701262,-500.0,0.00039726,6]
[327595044,1716246701272,-500.0,0.00039726,6]
[327595045,1716246701281,-788.86,0.00039726,6]
[327595046,1716246701294,-500.0,0.00039726,6]
[327595047,1716246701305,-500.0,0.00039726,6]
[327595048,1716246701314,-500.0,0.00039726,6]
[327595049,1716246701323,-500.0,0.00039726,6]
[327595050,1716246701334,-1492.34,0.00039726,6]
[327595051,1716246701344,-1912.95,0.00039726,6]
[327595052,1716246701353,-500.0,0.00039726,6]
[327595053,1716246701364,-613.68,0.00039726,6]
[327595054,1716246701373,-612.57,0.00039726,6]
[327595055,1716246701384,-500.0,0.00039726,6]
[327595056,1716246701393,-592.41,0.00039726,6]
[327595057,1716246701402,-500.0,0.00039726,6]
[327595058,1716246701412,-500.0,0.00039726,6]
[327595059,1716246701421,-500.0,0.00039726,6]
[327595060,1716246701431,-926.58,0.00039726,6]
[327595061,1716246701440,-500.0,0.00039726,6]
[327595062,1716246701449,-2000.0,0.00039726,6]
[327595063,1716246701459,-500.0,0.00039726,6]
[327595064,1716246701468,-642.72,0.00039726,6]
[327595065,1716246701477,-500.0,0.00039726,6]
[327595066,1716246701487,-500.0,0.00039726,6]
[327595067,1716246701497,-671.44,0.00039726,6]
[327595068,1716246701507,-500.0,0.00039726,6]
[327595069,1716246701516,-500.0,0.00039726,6]
[327595070,1716246701528,-500.0,0.00039726,6]
[327595071,1716246701537,-658.12,0.00039726,6]
[327595072,1716246701548,-500.0,0.00039726,6]
[327595073,1716246701559,-500.0,0.00039726,6]
[327595074,1716246701568,-500.0,0.00039726,6]
[327595075,1716246701580,-500.0,0.00039726,2]
[327595076,1716246701590,-500.0,0.00039726,6]
[327595077,1716246701600,-586.03,0.00039726,6]
[327595078,1716246701612,-548.26,0.00039726,6]
[327595079,1716246701623,-679.55,0.00039726,6]
[327595080,1716246701633,-500.0,0.00039726,6]
[327595081,1716246701644,-500.0,0.00039726,6]
[327595082,1716246701654,-500.0,0.00039726,6]
[327595083,1716246701664,-1512.26,0.00039726,6]
[327595084,1716246701674,-922.44,0.00039726,6]
[327595085,1716246701684,-500.0,0.00039726,6]
[327595086,1716246701695,-1487.5,0.00039726,6]
[327595087,1716246701704,-648.0,0.00039726,6]
[327595088,1716246701714,-1445.67,0.00039726,6]
[327595089,1716246701723,-631.7633233,0.00039726,2]
[327595090,1716246701732,-606.0,0.00039726,6]
[327595091,1716246701742,-1353.27,0.00039726,6]
[327595092,1716246701751,-500.0,0.00039726,6]
[327595093,1716246701760,-500.0,0.00039726,6]
[327595094,1716246701769,-2220.61,0.00039726,6]
[327595095,1716246701778,-450.94302177,0.00039726,6]
[327595096,1716246701804,-418.41697823,0.00039726,6]
[327595097,1716246701813,-500.0,0.00039726,6]
[327595098,1716246701823,-382.08557939,0.00039726,6]
[327595099,1716246701834,-117.91442061,0.00039726,6]
[327595100,1716246701844,-810.05,0.00039726,6]
[327595101,1716246701853,-543.21,0.00039726,6]
[327595102,1716246701862,-500.0,0.00039726,6]
[327595103,1716246701872,-434.18750975,0.00039726,6]
[327595104,1716246701881,-1339.38,0.00039726,6]
[327595105,1716246701891,-500.0,0.00039726,6]
[327595106,1716246701900,-511.34,0.00039726,6]
[327595107,1716246701909,-524.18,0.00039726,6]
[327595108,1716246701918,-500.0,0.00039726,6]
[327595109,1716246701927,-623.68,0.00039726,6]
[327595110,1716246701936,-621.04,0.00039726,6]
[327595111,1716246701946,-500.0,0.00039726,6]
[327595112,1716246701956,-500.0,0.00039726,6]
[327595113,1716246701965,-874.24,0.00039726,6]
[327595114,1716246701974,-608.02,0.00039726,6]
[327595115,1716246701983,-500.0,0.00039726,6]
[327595116,1716246701992,-836.02,0.00039726,6]
[327595117,1716246702002,-500.0,0.00039726,6]
[327595118,1716246702011,-579.08387536,0.00039726,6]
[327595119,1716246702021,-500.0,0.00039726,6]
[327595120,1716246702030,-1078.46,0.00039726,6]
[327595121,1716246702039,-780.25,0.00039726,6]
[327595122,1716246702048,-500.0,0.00039726,6]
[327595123,1716246702059,-1417.4,0.00039726,6]
[327595124,1716246702067,-500.0,0.00039726,6]
[327595125,1716246702077,-820.58,0.00039726,6]
[327595126,1716246702086,-500.0,0.00039726,6]
[327595127,1716246702096,-500.0,0.00039726,6]
[327595128,1716246702105,-500.0,0.00039726,6]
[327595129,1716246702114,-500.0,0.00039726,6]
[327595130,1716246702124,-500.0,0.00039726,6]
[327595131,1716246702133,-515.32,0.00039726,6]
[327595132,1716246702142,-1256.05,0.00039726,6]
[327595133,1716246702152,-1339.11,0.00039726,6]
[327595134,1716246702162,-516.67,0.00039726,6]
[327595135,1716246702170,-504.52,0.00039726,6]
[327595136,1716246702180,-500.0,0.00039726,6]
[327595137,1716246702189,-500.0,0.00039726,6]
[327595138,1716246702198,-500.0,0.00039726,6]
[327595139,1716246702208,-500.0,0.00039726,6]
[327595140,1716246702218,-500.0,0.00039726,6]
[327595141,1716246702227,-528.0,0.00039726,6]
[327595142,1716246702236,-1545.28,0.00039726,6]
[327595143,1716246702245,-500.0,0.00039726,6]
[327595144,1716246702255,-500.0,0.00039726,6]
[327595145,1716246702265,-140.38900798,0.00039726,6]
[327595146,1716246702285,-359.61099202,0.00039726,6]
[327595147,1716246702295,-500.0,0.00039726,6]
[327595148,1716246702305,-500.0,0.00039726,6]
[327595149,1716246702314,-262.48900818,0.00039726,6]
[327595150,1716246702326,-404.28099182,0.00039726,6]
[327595151,1716246702335,-504.33821634,0.00039726,6]
[327595152,1716246702347,-37.93178366,0.00039726,6]
[327595153,1716246702357,-435.00821596,0.00039726,6]
[327595154,1716246702368,-574.64178404,0.00039726,6]
[327595155,1716246702378,-561.99207836,0.00039726,6]
[327595156,1716246702387,-500.0,0.00039726,6]
[327595157,1716246702396,-205.8661378,0.00039726,6]
[327595158,1716246702407,-932.80000002,0.00039726,6]
[327595159,1716246702419,-229.81386218,0.00039726,6]
[327595160,1716246702428,-500.0,0.00039726,6]
[327595161,1716246702437,-548.01,0.00039726,6]
[327595162,1716246702446,-500.0,0.00039726,6]
[327595163,1716246702456,-695.19,0.00039726,6]
[327595164,1716246702465,-590.63,0.00039726,6]
[327595165,1716246702474,-500.0,0.00039726,6]
[327595166,1716246702484,-575.94959647,0.00039726,6]
[327595167,1716246702495,-17.41040353,0.00039726,6]
[327595168,1716246702504,-435.58959647,0.00039726,6]
[327595169,1716246703148,-1481.71970581,0.00036986,4]
[327595170,1716246703158,-500.0,0.00038356,6]
[327595171,1716246703168,-500.0,0.00038356,6]
[327595172,1716246703177,-500.0,0.0003863,6]
[327595173,1716246703187,-500.0,0.00038904,6]
[327595174,1716246703197,-500.0,0.00038904,6]
[327595175,1716246703207,-500.0,0.00039178,6]
[327595176,1716246703219,-500.0,0.00039178,6]
[327595177,1716246703228,-151.0,0.00039178,14]
[327595178,1716246703239,-500.0,0.00039178,6]
[327595179,1716246703248,-500.0,0.00039178,6]
[327595180,1716246703257,-500.0,0.00039452,6]
[327595181,1716246703267,-500.0,0.00039452,6]
[327595182,1716246703278,-151.0,0.00039452,14]
[327595183,1716246703292,-500.0,0.00039452,6]
[327595184,1716246703302,-500.0,0.00039452,6]
[327595185,1716246703311,-151.0,0.00039721,14]